fUSD/lending_fUSD_20241026
["ID","MTS","AMOUNT","RATE_DAILY","PERIOD"]
[340839581,1729907447901,-598.08,0.00059452,120]
[340839582,1729907447911,-598.08,0.00059452,120]
[340839583,1729907447920,-598.08,0.00059452,120]
[340839584,1729907447930,-612.21267876,0.00059452,120]
[340839585,1729907447939,-543.0565381,0.00059452,120]
[340839586,1729907447948,-524.18474272,0.00059452,120]
[340839587,1729907447957,-500.0,0.00059452,120]
[340839588,1729907447966,-500.0,0.00059452,120]
[340839589,1729907447976,-500.0,0.00059452,120]
[340839590,1729907447985,-500.0,0.00059452,120]
[340839591,1729907447994,-474.42195435,0.00059452,120]
[340839592,1729907448003,-589.64556415,0.00059452,120]
[340839593,1729907448012,-154.81884971,0.00059452,120]
[340839594,1729907448021,-500.0,0.00059452,120]
[340839595,1729907448031,-500.0,0.00059452,120]
[340839596,1729907448040,-500.0,0.00059452,120]
[340839597,1729907448049,-541.44235265,0.00059452,120]
[340839598,1729907448138,-500.0,0.00059452,120]
[340839599,1729907448147,-500.0,0.00059452,120]
[340839600,1729907448157,-500.0,0.00059452,120]
[340839601,1729907448166,-500.0,0.00059452,120]
[340839602,1729907448176,-500.0,0.00059452,120]
[340839603,1729907448185,-290.62428453,0.00059452,120]
[340839604,1729907448194,-500.0,0.00059452,120]
[340839605,1729907448204,-567.28115624,0.00059452,120]
[340839606,1729907448213,-500.0,0.00059452,120]
[340839607,1729907448222,-172.4311849,0.00059452,120]
[340839608,1729907448232,-500.0,0.00059452,120]
[340839609,1729907448241,-500.0,0.00059452,120]
[340839610,1729907448250,-500.0,0.00059452,120]
[340839611,1729907448260,-500.0,0.00059452,120]
[340839612,1729907448273,-515.70741793,0.00059452,120]
[340839613,1729907448283,-500.0,0.00059452,120]
[340839614,1729907448293,-500.0,0.00059452,120]
[340839615,1729907448302,-200.69744561,0.00059452,120]
[340839616,1729907448311,-151.0,0.00059452,120]
[340839617,1729907448321,-535.06232597,0.00059452,120]
[340839618,1729907448330,-500.0,0.00059452,120]
[340839619,1729907448340,-500.0,0.00059452,120]
[340839620,1729907448350,-500.0,0.00059452,120]
[340839621,1729907448359,-537.47828845,0.00059452,120]
[340839622,1729907448369,-500.0,0.00059452,120]
[340839623,1729907448378,-500.0,0.00059452,120]
[340839624,1729907448388,-500.0,0.00059452,120]
[340839625,1729907448397,-500.0,0.00059452,120]
[340839626,1729907448407,-500.0,0.00059452,120]
[340839627,1729907448417,-473.75668058,0.00059452,120]
[340839628,1729907448427,-894.21,0.00059452,120]
[340839629,1729907448436,-500.0,0.00059452,120]
[340839630,1729907448445,-894.21,0.00059452,120]
[340839631,1729907448454,-500.0,0.00059452,120]
[340839632,1729907448464,-894.21,0.00059452,120]
[340839633,1729907448473,-288.19119876,0.00059452,120]
[340839634,1729907448482,-894.21,0.00059452,120]
[340839635,1729907448492,-894.21,0.00059452,120]
[340839636,1729907448501,-894.21,0.00059452,120]
[340839637,1729907448511,-894.21,0.00059452,120]
[340839638,1729907448520,-500.0,0.00059452,120]
[340839639,1729907448529,-500.0,0.00059452,120]
[340839640,1729907448539,-500.0,0.00059452,120]
[340839641,1729907448548,-500.0,0.00059452,120]
[340839642,1729907448557,-500.0,0.00059452,120]
[340839643,1729907448566,-500.0,0.00059452,120]
[340839644,1729907448575,-500.0,0.00059452,120]
[340839645,1729907448585,-500.0,0.00059452,120]
[340839646,1729907448594,-500.0,0.00059452,120]
[340839647,1729907448603,-500.0,0.00059452,120]
[340839648,1729907448612,-500.0,0.00059452,120]
[340839649,1729907448621,-500.0,0.00059452,120]
[340839650,1729907448630,-500.0,0.00059452,120]
[340839651,1729907448639,-500.0,0.00059452,120]
[340839652,1729907448648,-500.0,0.00059452,120]
[340839653,1729907448658,-500.0,0.00059452,120]
[340839654,1729907448668,-500.0,0.00059452,120]
[340839655,1729907448680,-500.0,0.00059452,120]
[340839656,1729907448693,-189.18929995,0.00059452,120]
[340839657,1729907448702,-500.0,0.00059452,120]
[340839658,1729907448711,-500.0,0.00059452,120]
[340839659,1729907448720,-500.0,0.00059452,120]
[340839660,1729907448729,-500.0,0.00059452,120]
[340839661,1729907448739,-500.0,0.00059452,120]
[340839662,1729907448748,-500.0,0.00059452,120]
[340839663,1729907448757,-500.0,0.00059452,120]
[340839664,1729907448766,-508.50289964,0.00059452,120]
[340839665,1729907448776,-500.0,0.00059452,120]
[340839666,1729907448786,-500.0,0.00059452,120]
[340839667,1729907448795,-500.0,0.00059452,120]
[340839668,1729907448805,-500.0,0.00059452,120]
[340839669,1729907448814,-500.0,0.00059452,120]
[340839670,1729907448823,-500.0,0.00059452,120]
[340839671,1729907448832,-500.0,0.00059452,120]
[340839672,1729907448841,-500.0,0.00059452,120]
[340839673,1729907448851,-500.0,0.00059452,120]
[340839674,1729907448860,-647.47438652,0.00059452,120]
[340839675,1729907448870,-500.0,0.00059452,120]
[340839676,1729907448878,-500.0,0.00059452,120]
[340839677,1729907448887,-500.0,0.00059452,120]
[340839678,1729907448896,-500.0,0.00059452,120]
[340839679,1729907448906,-500.0,0.00059452,120]
[340839680,1729907448920,-189.76923201,0.00059452,120]
[340839681,1729907448934,-500.0,0.00059452,120]
[340839682,1729907448947,-500.0,0.00059452,120]
[340839683,1729907448958,-500.0,0.00059452,120]
[340839684,1729907448972,-500.0,0.00059452,120]
[340839685,1729907448985,-500.0,0.00059452,120]
[340839686,1729907449000,-411.65841374,0.00059452,120]
[340839687,1729907449012,-502.3158206,0.00059452,120]
[340839688,1729907449026,-500.0,0.00059452,120]
[340839689,1729907449040,-519.0007795,0.00059452,120]
[340839690,1729907449053,-500.0,0.00059452,120]
[340839691,1729907449065,-500.0,0.00059452,120]
[340839692,1729907449078,-500.0,0.00059452,120]
[340839693,1729907449092,-500.0,0.00059452,120]
[340839694,1729907449105,-500.0,0.00059452,120]
[340839695,1729907449117,-500.0,0.00059452,120]
[340839696,1729907449128,-500.0,0.00059452,120]
[340839697,1729907449140,-500.0,0.00059452,120]
[340839698,1729907449154,-189.77396383,0.00059452,120]
[340839699,1729907449167,-500.0,0.00059452,120]
[340839700,1729907449181,-500.0,0.00059452,120]
[340839701,1729907449195,-500.0,0.00059452,120]
[340839702,1729907449209,-500.0,0.00059452,120]
[340839703,1729907449222,-514.84762399,0.00059452,120]
[340839704,1729907449233,-500.0,0.00059452,120]
[340839705,1729907449244,-480.25746849,0.00059452,120]
[340839706,1729907449257,-500.0,0.00059452,120]
[340839707,1729907449274,-500.0,0.00059452,120]
[340839708,1729907449286,-500.0,0.00059452,120]
[340839709,1729907449300,-500.0,0.00059452,120]
[340839710,1729907449312,-500.0,0.00059452,120]
[340839711,1729907449325,-500.0,0.00059452,120]
[340839712,1729907449336,-500.0,0.00059452,120]
[340839713,1729907449350,-279.98033662,0.00059452,120]
[340839714,1729907449363,-500.0,0.00059452,120]
[340839715,1729907449375,-500.0,0.00059452,120]
[340839716,1729907449388,-559.64639058,0.00059452,120]
[340839717,1729907449400,-539.72922926,0.00059452,120]
[340839718,1729907449412,-500.0,0.00059452,120]
[340839719,1729907449426,-500.0,0.00059452,120]
[340839720,1729907449439,-500.0,0.00059452,120]
[340839721,1729907449451,-184.70560468,0.00059452,120]
[340839722,1729907449463,-500.0,0.00059452,120]
[340839723,1729907449476,-500.0,0.00059452,120]
[340839724,1729907449487,-500.0,0.00059452,120]
[340839725,1729907449500,-500.0,0.00059452,120]
[340839726,1729907449512,-500.0,0.00059452,120]
[340839727,1729907449524,-500.0,0.00059452,120]
[340839728,1729907449536,-500.0,0.00059452,120]
[340839729,1729907449548,-500.0,0.00059452,120]
[340839730,1729907449560,-500.0,0.00059452,120]
[340839731,1729907449572,-538.1770071,0.00059452,120]
[340839732,1729907449584,-500.0,0.00059452,120]
[340839733,1729907449596,-500.0,0.00059452,120]
[340839734,1729907449608,-500.0,0.00059452,120]
[340839735,1729907449620,-500.0,0.00059452,120]
[340839736,1729907449632,-500.0,0.00059452,120]
[340839737,1729907449644,-500.0,0.00059452,120]
[340839738,1729907449656,-273.12607203,0.00059452,120]
[340839739,1729907449668,-500.0,0.00059452,120]
[340839740,1729907449680,-500.0,0.00059452,120]
[340839741,1729907449691,-569.69,0.00059452,120]
[340839742,1729907449704,-569.69,0.00059452,120]
[340839743,1729907449716,-588.23724105,0.00059452,120]
[340839744,1729907449727,-500.0,0.00059452,120]
[340839745,1729907449739,-569.69,0.00059452,120]
[340839746,1729907449751,-500.0,0.00059452,120]
[340839747,1729907449762,-569.69,0.00059452,120]
[340839748,1729907449774,-161.08256083,0.00059452,120]
[340839749,1729907449787,-569.69,0.00059452,120]
[340839750,1729907449799,-569.69,0.00059452,120]
[340839751,1729907449811,-569.69,0.00059452,120]
[340839752,1729907449823,-510.01666978,0.00059452,120]
[340839753,1729907449834,-556.25405641,0.00059452,120]
[340839754,1729907449846,-500.0,0.00059452,120]
[340839755,1729907449857,-523.17238129,0.00059452,120]
[340839756,1729907449869,-500.0,0.00059452,120]
[340839757,1729907449882,-500.0,0.00059452,120]
[340839758,1729907449893,-629.66763402,0.00059452,120]
[340839759,1729907449903,-500.0,0.00059452,120]
[340839760,1729907450026,-500.0,0.00059452,120]
[340839761,1729907450035,-500.0,0.00059452,120]
[340839762,1729907450047,-175.65702149,0.00059452,120]
[340839763,1729907450056,-414.66987019,0.00059452,120]
[340839764,1729907450065,-856.45,0.00059452,120]
[340839765,1729907450075,-856.45,0.00059452,120]
[340839766,1729907450086,-856.45,0.00059452,120]
[340839767,1729907450095,-500.0,0.00059452,120]
[340839768,1729907450104,-856.45,0.00059452,120]
[340839769,1729907450113,-500.0,0.00059452,120]
[340839770,1729907450122,-856.45,0.00059452,120]
[340839771,1729907450131,-365.69404775,0.00059452,120]
[340839772,1729907450140,-500.0,0.00059452,120]
[340839773,1729907450148,-856.45,0.00059452,120]
[340839774,1729907450159,-163.7345395,0.00059452,120]
[340839775,1729907450170,-500.0,0.00059452,120]
[340839776,1729907450179,-856.45,0.00059452,120]
[340839777,1729907450189,-500.0,0.00059452,120]
[340839778,1729907450198,-500.0,0.00059452,120]
[340839779,1729907450208,-500.0,0.00059452,120]
[340839780,1729907450219,-500.0,0.00059452,120]
[340839781,1729907450229,-500.0,0.00059452,120]
[340839782,1729907450239,-500.0,0.00059452,120]
[340839783,1729907450248,-536.99773065,0.00059452,120]
[340839784,1729907450258,-515.09694675,0.00059452,120]
[340839785,1729907450268,-154.56762012,0.00059452,120]
[340839786,1729907450278,-500.0,0.00059452,120]
[340839787,1729907450287,-500.0,0.00059452,120]
[340839788,1729907450296,-500.0,0.00059452,120]
[340839789,1729907450306,-500.0,0.00059452,120]
[340839790,1729907450315,-308.05913497,0.00059452,120]
[340839791,1729907450324,-500.0,0.00059452,120]
[340839792,1729907450333,-500.0,0.00059452,120]
[340839793,1729907450344,-500.0,0.00059452,120]
[340839794,1729907450353,-572.03784467,0.00059452,120]
[340839795,1729907450362,-500.0,0.00059452,120]
[340839796,1729907450372,-500.0,0.00059452,120]
[340839797,1729907450381,-500.0,0.00059452,120]
[340839798,1729907450390,-604.53417651,0.00059452,120]
[340839799,1729907450399,-519.73058477,0.00059452,120]
[340839800,1729907450408,-533.24778578,0.00059452,120]
[340839801,1729907450418,-500.0,0.00059452,120]
[340839802,1729907450427,-500.0,0.00059452,120]
[340839803,1729907450436,-500.0,0.00059452,120]
[340839804,1729907450445,-500.0,0.00059452,120]
[340839805,1729907450455,-500.0,0.00059452,120]
[340839806,1729907450463,-500.0,0.00059452,120]
[340839807,1729907450472,-500.0,0.00059452,120]
[340839808,1729907450481,-500.0,0.00059452,120]
[340839809,1729907450490,-500.0,0.00059452,120]
[340839810,1729907450500,-521.22076853,0.00059452,120]
[340839811,1729907450509,-500.0,0.00059452,120]
[340839812,1729907450518,-500.0,0.00059452,120]
[340839813,1729907450527,-500.0,0.00059452,120]
[340839814,1729907450536,-504.05459321,0.00059452,120]
[340839815,1729907450545,-500.0,0.00059452,120]
[340839816,1729907450554,-396.6127084,0.00059452,120]
[340839817,1729907450563,-637.68253241,0.00059452,120]
[340839818,1729907450572,-500.0,0.00059452,120]
[340839819,1729907450584,-284.45982897,0.00059452,120]
[340839820,1729907450593,-754.8,0.00059452,4]
[340839821,1729907450602,-754.8,0.00059452,4]
[340839822,1729907450611,-525.77766579,0.00059452,120]
[340839823,1729907450620,-754.8,0.00059452,4]
[340839824,1729907450629,-500.0,0.00059452,120]
[340839825,1729907450638,-754.8,0.00059452,4]
[340839826,1729907450647,-500.0,0.00059452,120]
[340839827,1729907450656,-754.8,0.00059452,4]
[340839828,1729907450665,-500.0,0.00059452,120]
[340839829,1729907450675,-754.8,0.00059452,4]
[340839830,1729907450684,-500.0,0.00059452,120]
[340839831,1729907450694,-754.8,0.00059452,4]
[340839832,1729907450703,-500.0,0.00059452,120]
[340839833,1729907450715,-500.0,0.00059452,120]
[340839834,1729907450724,-326.43625412,0.00059452,120]
[340839835,1729907450733,-500.0,0.00059452,120]
[340839836,1729907450743,-500.0,0.00059452,120]
[340839837,1729907450752,-500.0,0.00059452,120]
[340839838,1729907450760,-500.0,0.00059452,120]
[340839839,1729907450770,-168.91306323,0.00059452,120]
[340839840,1729907450779,-528.34717944,0.00059452,120]
[340839841,1729907450788,-500.0,0.00059452,120]
[340839842,1729907450796,-549.55,0.00059452,120]
[340839843,1729907450806,-500.0,0.00059452,120]
[340839844,1729907450815,-549.55,0.00059452,120]
[340839845,1729907450824,-500.0,0.00059452,120]
[340839846,1729907450833,-549.55,0.00059452,120]
[340839847,1729907450842,-500.0,0.00059452,120]
[340839848,1729907450851,-549.55,0.00059452,120]
[340839849,1729907450860,-500.0,0.00059452,120]
[340839850,1729907450869,-500.0,0.00059452,7]
[340839851,1729907450878,-549.55,0.00059452,120]
[340839852,1729907450886,-500.0,0.00059452,120]
[340839853,1729907450895,-500.0,0.00059452,120]
[340839854,1729907450905,-542.39653444,0.00059452,7]
[340839855,1729907450914,-549.55,0.00059452,120]
[340839856,1729907450923,-500.0,0.00059452,120]
[340839857,1729907450932,-500.0,0.00059452,120]
[340839858,1729907450941,-500.0,0.00059452,120]
[340839859,1729907450951,-549.55,0.00059452,120]
[340839860,1729907450960,-500.0,0.00059452,120]
[340839861,1729907450969,-500.0,0.00059452,120]
[340839862,1729907450978,-500.0,0.00059452,120]
[340839863,1729907450987,-500.0,0.00059452,120]
[340839864,1729907450996,-500.0,0.00059452,120]
[340839865,1729907451005,-535.95847007,0.00059452,120]
[340839866,1729907451014,-501.24741285,0.00059452,120]
[340839867,1729907451023,-282.49925973,0.00059452,120]
[340839868,1729907451032,-503.39764048,0.00059452,120]
[340839869,1729907451041,-500.0,0.00059452,120]
[340839870,1729907451050,-500.0,0.00059452,120]
[340839871,1729907451059,-500.0,0.00059452,120]
[340839872,1729907451068,-537.36075965,0.00059452,120]
[340839873,1729907451077,-500.0,0.00059452,120]
[340839874,1729907451086,-591.67768917,0.00059452,120]
[340839875,1729907451095,-500.0,0.00059452,120]
[340839876,1729907451104,-605.90940241,0.00059452,120]
[340839877,1729907451113,-500.0,0.00059452,120]
[340839878,1729907451122,-500.0,0.00059452,120]
[340839879,1729907451131,-500.0,0.00059452,120]
[340839880,1729907451140,-500.0,0.00059452,120]
[340839881,1729907451149,-500.0,0.00059452,2]
[340839882,1729907451158,-500.0,0.00059452,120]
[340839883,1729907451167,-500.0,0.00059452,2]
[340839884,1729907451177,-500.0,0.00059452,120]
[340839885,1729907451186,-500.0,0.00059452,2]
[340839886,1729907451195,-500.0,0.00059452,120]
[340839887,1729907451204,-221.77896938,0.00059452,2]
[340839888,1729907451212,-539.59537976,0.00059452,120]
[340839889,1729907451221,-500.0,0.00059452,120]
[340839890,1729907451230,-510.10598365,0.00059452,120]
[340839891,1729907451239,-528.75901174,0.00059452,120]
[340839892,1729907451248,-500.0,0.00059452,120]
[340839893,1729907451258,-500.0,0.00059452,120]
[340839894,1729907451269,-500.0,0.00059452,120]
[340839895,1729907451278,-500.0,0.00059452,120]
[340839896,1729907451288,-500.0,0.00059452,120]
[340839897,1729907451297,-500.0,0.00059452,120]
[340839898,1729907451306,-500.0,0.00059452,120]
[340839899,1729907451316,-500.0,0.00059452,120]
[340839900,1729907451325,-500.0,0.00059452,120]
[340839901,1729907451334,-500.0,0.00059452,120]
[340839902,1729907451344,-500.0,0.00059452,120]
[340839903,1729907451353,-500.0,0.00059452,120]
[340839904,1729907451362,-500.0,0.00059452,120]
[340839905,1729907451371,-500.0,0.00059452,120]
[340839906,1729907451381,-500.0,0.00059452,120]
[340839907,1729907451390,-500.0,0.00059452,120]
[340839908,1729907451400,-500.0,0.00059452,120]
[340839909,1729907451411,-537.22882458,0.00059452,120]
[340839910,1729907451421,-602.93582499,0.00059452,120]
[340839911,1729907451431,-500.0,0.00059452,120]
[340839912,1729907451440,-500.0,0.00059452,120]
[340839913,1729907451450,-500.0,0.00059452,120]
[340839914,1729907451459,-500.0,0.00059452,120]
[340839915,1729907451468,-500.0,0.00059452,120]
[340839916,1729907451477,-459.12321418,0.00059452,120]
[340839917,1729907451486,-500.0,0.00059452,120]
[340839918,1729907451496,-500.0,0.00059452,120]
[340839919,1729907451505,-500.0,0.00059452,120]
[340839920,1729907451514,-531.66157029,0.00059452,120]
[340839921,1729907451523,-500.0,0.00059452,120]
[340839922,1729907451532,-507.89817703,0.00059452,120]
[340839923,1729907451541,-180.642797,0.00059452,120]
[340839924,1729907451550,-500.0,0.00059452,120]
[340839925,1729907451559,-500.0,0.00059452,120]
[340839926,1729907451567,-560.50058425,0.00059452,120]
[340839927,1729907451577,-500.0,0.00059452,120]
[340839928,1729907451586,-500.0,0.00059452,120]
[340839929,1729907451595,-172.77415638,0.00059452,120]
[340839930,1729907451604,-169.31512043,0.00059452,120]
[340839931,1729907451612,-500.0,0.00059452,120]
[340839932,1729907451622,-539.181597,0.00059452,120]
[340839933,1729907451630,-500.0,0.00059452,120]
[340839934,1729907451639,-558.11520942,0.00059452,120]
[340839935,1729907451649,-500.0,0.00059452,120]
[340839936,1729907451658,-500.0,0.00059452,120]
[340839937,1729907451667,-500.0,0.00059452,120]
[340839938,1729907451678,-515.26914545,0.00059452,120]
[340839939,1729907451687,-500.0,0.00059452,120]
[340839940,1729907451696,-500.0,0.00059452,120]
[340839941,1729907451705,-500.0,0.00059452,120]
[340839942,1729907451714,-638.39702695,0.00059452,120]
[340839943,1729907451723,-500.0,0.00059452,120]
[340839944,1729907451732,-500.0,0.00059452,120]
[340839945,1729907451741,-153.12068262,0.00059452,120]
[340839946,1729907451750,-500.0,0.00059452,120]
[340839947,1729907451758,-500.0,0.00059452,120]
[340839948,1729907451767,-500.0,0.00059452,120]
[340839949,1729907451776,-500.0,0.00059452,120]
[340839950,1729907451786,-500.0,0.00059452,120]
[340839951,1729907451795,-500.0,0.00059452,120]
[340839952,1729907451805,-500.0,0.00059452,120]
[340839953,1729907451814,-500.0,0.00059452,120]
[340839954,1729907451823,-500.0,0.00059452,120]
[340839955,1729907451832,-316.14431054,0.00059452,120]
[340839956,1729907451842,-517.69098184,0.00059452,120]
[340839957,1729907451851,-151.29284646,0.00059452,120]
[340839958,1729907451861,-500.0,0.00059452,120]
[340839959,1729907451870,-500.0,0.00059452,120]
[340839960,1729907451879,-500.0,0.00059452,120]
[340839961,1729907451889,-512.86888361,0.00059452,120]
[340839962,1729907451898,-535.05321862,0.00059452,120]
[340839963,1729907451908,-514.52750866,0.00059452,120]
[340839964,1729907451917,-500.0,0.00059452,120]
[340839965,1729907451927,-500.0,0.00059452,120]
[340839966,1729907451937,-542.87928273,0.00059452,120]
[340839967,1729907451946,-511.57311015,0.00059452,120]
[340839968,1729907451955,-529.30010226,0.00059452,120]
[340839969,1729907451964,-500.0,0.00059452,120]
[340839970,1729907451973,-553.9030917,0.00059452,120]
[340839971,1729907451983,-500.0,0.00059452,120]
[340839972,1729907451992,-500.0,0.00059452,120]
[340839973,1729907452001,-500.0,0.00059452,120]
[340839974,1729907452010,-2385.55,0.00059452,120]
[340839975,1729907452019,-500.0,0.00059452,120]
[340839976,1729907452028,-912.8,0.00059452,120]
[340839977,1729907452038,-2385.55,0.00059452,120]
[340839978,1729907452047,-500.0,0.00059452,120]
[340839979,1729907452056,-912.8,0.00059452,120]
[340839980,1729907452066,-2385.55,0.00059452,120]
[340839981,1729907452075,-500.0,0.00059452,120]
[340839982,1729907452168,-217.14853917,0.00059452,120]
[340839983,1729907452179,-912.8,0.00059452,120]
[340839984,1729907452188,-563.52214173,0.00059452,120]
[340839985,1729907452197,-2385.55,0.00059452,120]
[340839986,1729907452207,-169.14671846,0.00059452,120]
[340839987,1729907452216,-912.8,0.00059452,120]
[340839988,1729907452225,-2385.55,0.00059452,120]
[340839989,1729907452235,-500.0,0.00059452,120]
[340839990,1729907452244,-912.8,0.00059452,120]
[340839991,1729907452253,-500.0,0.00059452,120]
[340839992,1729907452266,-912.8,0.00059452,120]
[340839993,1729907452275,-2385.55,0.00059452,120]
[340839994,1729907452285,-500.0,0.00059452,120]
[340839995,1729907452294,-2385.55,0.00059452,120]
[340839996,1729907452304,-912.8,0.00059452,120]
[340839997,1729907452314,-539.44379532,0.00059452,120]
[340839998,1729907452323,-2385.55,0.00059452,120]
[340839999,1729907452333,-2385.55,0.00059452,120]
[340840000,1729907452343,-580.03983547,0.00059452,120]
[340840001,1729907452352,-504.25530926,0.00059452,120]
[340840002,1729907452361,-2385.55,0.00059452,120]
[340840003,1729907452371,-2385.55,0.00059452,120]
[340840004,1729907452380,-500.0,0.00059452,120]
[340840005,1729907452389,-2385.55,0.00059452,120]
[340840006,1729907452398,-500.0,0.00059452,120]
[340840007,1729907452408,-2385.55,0.00059452,120]
[340840008,1729907452417,-575.51540714,0.00059452,120]
[340840009,1729907452430,-2385.55,0.00059452,120]
[340840010,1729907452439,-546.85296004,0.00059452,120]
[340840011,1729907452448,-2385.55,0.00059452,120]
[340840012,1729907452457,-2385.55,0.00059452,120]
[340840013,1729907452467,-500.0,0.00059452,120]
[340840014,1729907452475,-2385.55,0.00059452,120]
[340840015,1729907452485,-387.63684708,0.00059452,120]
[340840016,1729907452494,-154.219995,0.00059485,120]
[340840017,1729907452504,-161.838733,0.00059485,120]
[340840018,1729907452513,-293.542234,0.00059485,120]
[340840019,1729907452523,-520.29037353,0.00059485,120]
[340840020,1729907452532,-544.56,0.00059499,120]
[340840021,1729907452542,-500.0,0.00059499,120]
[340840022,1729907452552,-894.21,0.00059499,120]
[340840023,1729907452562,-500.0,0.00059499,120]
[340840024,1729907452571,-383.96680374,0.00059499,120]
[340840025,1729907452580,-500.0,0.00059499,120]
[340840026,1729907452589,-1672.1,0.000595,60]
[340840027,1729907452598,-151.787267,0.000595,120]
[340840028,1729907452608,-441.549327,0.000595,120]
[340840029,1729907452617,-152.198789,0.000595,120]
[340840030,1729907452626,-153.98497,0.000595,120]
[340840031,1729907452635,-441.549327,0.000595,120]
[340840032,1729907452644,-151.0,0.000595,120]
[340840033,1729907452653,-151.0,0.000595,110]
[340840034,1729907452663,-150.0,0.00059588,120]
[340840035,1729907452673,-324.59430196,0.00059664,2]
[340840036,1729907452682,-500.0,0.00059711,120]
[340840037,1729907452691,-150.0,0.00059725,120]
[340840038,1729907452701,-1187.19691028,0.000598,120]
[340840039,1729907452710,-155.495415,0.000598,120]
[340840040,1729907452719,-152.404133,0.000598,120]
[340840041,1729907452728,-154.959338,0.000598,120]
[340840042,1729907452738,-151.0,0.000598,120]
[340840043,1729907452747,-247.991146,0.000598,120]
[340840044,1729907452756,-156.485792,0.000598,120]
[340840045,1729907452765,-151.0,0.000598,120]
[340840046,1729907452774,-500.0,0.00059861,120]
[340840047,1729907452783,-1471.99,0.00059861,120]
[340840048,1729907452793,-500.0,0.00059861,21]
[340840049,1729907452802,-500.0,0.00059861,120]
[340840050,1729907452811,-156.62617167,0.00059861,120]
[340840051,1729907452821,-150.0,0.00059862,120]
[340840052,1729907452830,-500.0,0.00059862,120]
[340840053,1729907452839,-247.16492297,0.00059862,120]
[340840054,1729907452848,-500.0,0.00059862,120]
[340840055,1729907452857,-500.0,0.00059862,120]
[340840056,1729907452866,-500.0,0.00059862,120]
[340840057,1729907452875,-500.0,0.00059862,120]
[340840058,1729907452884,-500.0,0.00059862,120]
[340840059,1729907452893,-500.0,0.00059862,120]
[340840060,1729907452902,-500.0,0.00059862,120]
[340840061,1729907452911,-500.0,0.00059862,120]
[340840062,1729907452921,-500.0,0.00059862,120]
[340840063,1729907452930,-856.45,0.00059862,120]
[340840064,1729907452939,-754.8,0.00059862,4]
[340840065,1729907452949,-500.0,0.00059862,120]
[340840066,1729907452958,-500.0,0.00059862,120]
[340840067,1729907452967,-912.8,0.00059862,120]
[340840068,1729907452979,-1085.42,0.00059897,120]
[340840069,1729907452987,-1000.0,0.00059897,120]
[340840070,1729907452997,-154.471123,0.00059897,120]
[340840071,1729907453006,-389.26933,0.00059897,120]
[340840072,1729907453015,-151.0,0.00059897,120]
[340840073,1729907453024,-389.26933,0.00059897,120]
[340840074,1729907453033,-323.94356585,0.000599,2]
[340840075,1729907453042,-169.28172345,0.000599,120]
[340840076,1729907453052,-533.06294402,0.000599,2]
[340840077,1729907453061,-6403.15174986,0.000599,2]
[340840078,1729907453071,-2328.5255544,0.00059959,2]
[340840079,1729907453080,-152.70343224,0.0005999,120]
[340840080,1729907453089,-598.08,0.00059998,120]